Cogmind - Beta 9.6 @@@ ROGUE MODE // 2020.08.22 @ 10:12:50 Player: Ketemphor Result: Self-destructed Performance ------------- Evolutions (2) 1000 Regions Visited (4) 800 Robots Destroyed (28) 140 Value Destroyed (522) 522 Prototype IDs (1) 20 Alien Tech Used (0) 0 Bonus (0) 0 TOTAL SCORE: 2482 Bonus ------- None Cogmind --------- Core Integrity 238/550 Matter 4/300 Energy 187/250 System Corruption 1% Temperature Cool (18) Movement Core (300) Ox5 Location -8/Materials Parts ------- > --- POWER (1) -------- Ion Engine > --- PROPULSION (3) --- (None) > --- UTILITY (5) ------ Visual Processing Unit Improved Sensor Array Terrain Scan Processor > --- WEAPON (2) ------- Advanced EMP Blaster Advanced EMP Blaster > --- INVENTORY (4) ---- High-capacity Storage Unit Peak State ------------ > --- POWER ------------ Ion Engine > --- PROPULSION ------- Gravmag System Gravmag System Gravmag System > --- UTILITY ---------- Visual Processing Unit Improved Sensor Array Terrain Scan Processor Improved Medium Armor Plating > --- WEAPON ----------- (None) > --- INVENTORY -------- High-capacity Storage Unit [Rating: 23] Favorites ----------- Power Ion Engine Engine Ion Engine Propulsion Hover Unit Leg Aluminum Leg Hover Unit Hover Unit Utility Terrain Scan Processor Device Improved Terrain Scanner Storage High-capacity Storage Unit Processor Terrain Scan Processor Protection Improved Medium Armor Plating Weapon Assault Rifle Energy Gun EM Pulse Gun Ballistic Gun Assault Rifle Launcher Grenade Launcher Build | -11 -10 -10 -9 -8 ------- Run | Scr Mat Min Mat Mat Slots Evolved 4 | . . . 2 2 Power . | . . . . . Propulsion 1 | . . . 1 . Utility 3 | . . . 1 2 Weapon . | . . . . . Parts Attached 32 | . 17 . 3 12 Power 3 | . 1 . . 2 Engine 3 | . 1 . . 2 Core . | . . . . . Reactor . | . . . . . Propulsion 8 | . 4 . 1 3 Treads . | . . . . . Leg . | . . . . . Wheel . | . . . . . Hover 8 | . 4 . 1 3 Flight . | . . . . . Utility 12 | . 6 . 2 4 Device 4 | . 1 . 1 2 Storage 4 | . 3 . . 1 Processor 3 | . 2 . 1 . Hackware . | . . . . . Protection 1 | . . . . 1 Artifact . | . . . . . Weapon 9 | . 6 . . 3 Energy Gun 1 | . . . . 1 Energy Cannon . | . . . . . Ballistic Gun 3 | . 3 . . . Ballistic Cannon . | . . . . . Launcher 5 | . 3 . . 2 Special Weapon . | . . . . . Impact Weapon . | . . . . . Slashing Weapon . | . . . . . Piercing Weapon . | . . . . . Special Melee Weapon . | . . . . . Unidentified Prototypes 1 | . . . . 1 Parts Lost 16 | . 2 . 7 7 Power 2 | . 1 . . 1 Propulsion 7 | . 1 . 3 3 Utility 4 | . . . 2 2 Weapon 3 | . . . 2 1 Highest Loss Streak 6 | . 2 . 6 5 Average Slot Usage (%) 76 | . 91 100 60 37 Engine 11 | . 13 14 11 6 Leg 6 | . 13 . . . Hover 14 | . 14 28 15 2 Device 8 | . 6 14 9 7 Storage 6 | . 13 . . . Processor 9 | . 1 14 12 18 Energy Gun 2 | . 5 . . 1 Ballistic Gun 11 | . 18 14 3 . Launcher 5 | . 2 14 8 . Naked Turns . | . . . . . Heaviest Build 42 | 11 42 11 12 13 Greatest Support 33 | 20 20 12 18 33 Greatest Overweight (x) 3 | . 3 . 2 3 Average Overweight (x) . | . 1 . . 1 Largest Inventory Capacity 12 | 6 12 4 4 12 Average Capacity 6 | 6 10 4 4 4 Most Carried 12 | 6 12 4 3 2 Average Carried 4 | 6 6 4 1 1 Final Capacity 6 | 6 4 4 4 4 Final Carried 6 | 6 4 4 1 1 Class Distribution -------------------- 94% | Mutant 5% | Scout Dominant Class ---------------- Mutant | -10/Materials Mutant | -10/Mines Mutant | -9/Materials Mutant | -8/Materials Resources | -11 -10 -10 -9 -8 ----------- Run | Scr Mat Min Mat Mat Matter Collected 421 | 200 176 . 45 . Remotely . | . . . . . Salvage Created 383 | . 186 . 197 . Parts 44 | . 24 . 20 . Haulers Intercepted . | . . . . . Recyclers Shooed . | . . . . . Parts Field Recycled . | . . . . . Retrieved Matter . | . . . . . Parts Self-Destructed . | . . . . . Prevented . | . . . . . Kills | -11 -10 -10 -9 -8 ------- Run | Scr Mat Min Mat Mat Combat Hostiles Destroyed 20 | . 8 . 12 . Guns 3 | . 3 . . . AOE 17 | . 5 . 12 . Classes Destroyed 7 | . 4 . 3 . Worker 2 | . 2 . . . Builder 3 | . . . 3 . Mechanic 1 | . . . 1 . Watcher 2 | . 2 . . . Swarmer 12 | . 6 . 6 . Grunt 7 | . 2 . 5 . Brawler 1 | . . . 1 . Best Kill Streak 16 | . 6 . 16 . Combat Bots Only 12 | . 3 . 12 . Max Kills in Single Turn 3 | . 3 . 2 . Gunslinging . | . . . . . Exploded 2 | . 2 . 2 . Melee . | . . . . . Uniques/NPCs Destroyed . | . . . . . Combat | -11 -10 -10 -9 -8 -------- Run | Scr Mat Min Mat Mat Damage Taken 2007 | . 615 . 474 918 Core 654 | . 167 . 175 312 Absorbed by Shields . | . . . . . Core Remaining (%) 63 | 100 . 33 56 . Volleys Fired 39 | . 24 . 15 . Largest 2 | . 2 . 1 . Hottest 80 | . 80 . 30 . Shots Fired 60 | . 45 . 15 . Gun 39 | . 39 . . . Cannon . | . . . . . Launcher 21 | . 6 . 15 . Special . | . . . . . Kinetic 32 | . 32 . . . Thermal . | . . . . . Explosive 21 | . 6 . 15 . Electromagnetic 7 | . 7 . . . Robot Hit Streak 10 | . 10 . 4 . Robot Miss Streak 4 | . 4 . 1 . Penetration Max . | . . . . . Secondary Targets 1 | . 1 . . . Max Gunslinging Chain 1 | . 1 . . . Shots Hit Robots 34 | . 25 . 9 . Core Hits 40 | . 17 . 23 . Critical Hits . | . . . . . Critical Kills . | . . . . . Critical Parts Destroyed . | . . . . . Melee Attacks . | . . . . . Impact . | . . . . . Slashing . | . . . . . Piercing . | . . . . . Sneak Attacks . | . . . . . Combat Hostiles . | . . . . . Follow-up Attacks . | . . . . . Damage Inflicted 1551 | . 552 . 987 12 Guns 221 | . 221 . . . Cannons . | . . . . . Explosions 1318 | . 331 . 987 . Melee . | . . . . . Ramming 12 | . . . . 12 Kinetic 200 | . 200 . . . Thermal 58 | . 58 . . . Explosive 1260 | . 273 . 987 . Electromagnetic 21 | . 21 . . . Impact . | . . . . . Slashing . | . . . . . Piercing . | . . . . . Highest Corruption 1 | . . . . 1 Average Corruption 1 | . . . . 1 Corruption Purged . | . . . . . Overload Shots . | . . . . . Overflow Damage 5 | . . . 5 . Projectiles . | . . . . . Explosions 5 | . . . 5 . Melee . | . . . . . Knockbacks . | . . . . . Impact . | . . . . . Kinetic . | . . . . . Secondary . | . . . . . Self-Inflicted Damage 154 | . 79 . 69 6 Shots 6 | . 2 . 4 . Rammed 3 | . . . . 3 Targets Rammed 3 | . . . . 3 Kicked . | . . . . . Crushed . | . . . . . Highest Temperature 29 | . 29 . 5 14 Average Temperature 9 | . 10 . 2 10 Received Heat Transfer 765 | . 219 . 96 450 Siege Activations . | . . . . . Robots Corrupted . | . . . . . Combat Hostiles . | . . . . . Parts Fried . | . . . . . Impact Corruptions . | . . . . . Robots Melted . | . . . . . Combat Hostiles . | . . . . . Parts Melted . | . . . . . Heat Transferred 50 | . 50 . . . Parts Sabotaged . | . . . . . Parts Stolen . | . . . . . Parts Stripped . | . . . . . Power Chain Reactions . | . . . . . Missiles Intercepted . | . . . . . Alert | -11 -10 -10 -9 -8 ------- Run | Scr Mat Min Mat Mat Peak Influence 349 | . 261 37 349 153 Average Influence 137 | . 139 37 238 139 Maximum Alert Level 1 | . 1 . 1 . Low Security (%) 71 | 100 61 100 32 100 Level 1 28 | . 38 . 67 . Level 2 . | . . . . . Level 3 . | . . . . . Level 4 . | . . . . . Level 5 . | . . . . . High Security . | . . . . . Max Security . | . . . . . Squads Dispatched 1 | . . . 1 . Investigation . | . . . . . Extermination . | . . . . . Reinforcement 1 | . . . 1 . Assault . | . . . . . Garrison . | . . . . . Intercept . | . . . . . Construction Impeded . | . . . . . Haulers Reinforced . | . . . . . Stealth | -11 -10 -10 -9 -8 --------- Run | Scr Mat Min Mat Mat Distress Signals 1 | . . . 1 . Communications Jammed . | . . . . . Distress Signals . | . . . . . Times Spotted 44 | . 11 . 20 13 Peak Tracking Total 11 | . 4 . 11 7 Tactical Retreats 4 | . . . . 4 Traps | -11 -10 -10 -9 -8 ------- Run | Scr Mat Min Mat Mat Traps Triggered 2 | . . . . 2 Indirectly . | . . . . . Trap Hack Attempts . | . . . . . Triggered . | . . . . . Disarmed . | . . . . . Reprogrammed . | . . . . . Reused . | . . . . . Traps Extracted . | . . . . . Installed . | . . . . . Triggered . | . . . . . Machines | -11 -10 -10 -9 -8 ---------- Run | Scr Mat Min Mat Mat Machines Disabled 4 | . 3 . 1 . Max in Single Turn 2 | . 2 . 1 . Machines Sabotaged . | . . . . . Garrisons Compromised . | . . . . . Overloaded Fab Kills . | . . . . . Fab Network Shutdowns . | . . . . . Hacking | -11 -10 -10 -9 -8 --------- Run | Scr Mat Min Mat Mat Machines Accessed 6 | . 4 . 1 1 Terminals 6 | . 4 . 1 1 Fabricators . | . . . . . Repair Stations . | . . . . . Recycling Units . | . . . . . Scanalyzers . | . . . . . Garrison Access . | . . . . . Total Hacks 12 | . 8 . 2 2 Successful 7 | . 4 . 1 2 Failed 5 | . 4 . 1 . Catastrophic . | . . . . . Database Lockouts . | . . . . . Manual . | . . . . . Terminals 12 | . 8 . 2 2 Fabricators . | . . . . . Repair Stations . | . . . . . Recycling Units . | . . . . . Scanalyzers . | . . . . . Garrison Access . | . . . . . Terminal Hacks 7 | . 4 . 1 2 Alert Level 2 | . 1 . 1 . Locate Traps 1 | . 1 . . . Maintenance Status 1 | . 1 . . . Investigation Status 1 | . . . . 1 Zone Layout 2 | . 1 . . 1 Fabricator Hacks . | . . . . . Repair Station Hacks . | . . . . . Recycling Unit Hacks . | . . . . . Scanalyzer . | . . . . . Garrison Access Hacks . | . . . . . Unauthorized Hacks . | . . . . . Terminals . | . . . . . Fabricators . | . . . . . Repair Stations . | . . . . . Recycling Units . | . . . . . Scanalyzers . | . . . . . Garrison Access . | . . . . . Data Cores Recovered . | . . . . . Used . | . . . . . Hacking Detections 3 | . 2 . 1 . Full Trace Events . | . . . . . Feedback Events . | . . . . . Feedback Blocked . | . . . . . Robot Schematics Acquired . | . . . . . Robots Built . | . . . . . Matter . | . . . . . Time . | . . . . . Total Robot Build Rating . | . . . . . Part Schematics Acquired . | . . . . . Parts Built . | . . . . . Matter . | . . . . . Time . | . . . . . Total Part Build Rating . | . . . . . Parts Repaired . | . . . . . Time . | . . . . . Parts Recycled . | . . . . . Recycled Matter . | . . . . . Retrieved Matter . | . . . . . Retrieved Components . | . . . . . Parts Scanalyzed . | . . . . . Part Schematics Acquired . | . . . . . Parts Damaged . | . . . . . Bothacking | -11 -10 -10 -9 -8 ------------ Run | Scr Mat Min Mat Mat Used RIF Installer . | . . . . . Robots Hacked . | . . . . . Non-combat . | . . . . . Combat . | . . . . . Robot Hacks Applied . | . . . . . Relay Couplers Released . | . . . . . Robots Rewired . | . . . . . Allies Hacked . | . . . . . Hacks Repelled . | . . . . . Allies | -11 -10 -10 -9 -8 -------- Run | Scr Mat Min Mat Mat Total Allies . | . . . . . Largest Group . | . . . . . Highest-Rated Group . | . . . . . Highest-Rated Ally . | . . . . . Total Orders . | . . . . . Ally Attacks . | . . . . . Total Damage . | . . . . . Kills . | . . . . . Allies Corrupted . | . . . . . Allies Melted . | . . . . . Intel | -11 -10 -10 -9 -8 ------- Run | Scr Mat Min Mat Mat Robot Analysis Total . | . . . . . Derelict Logs Recovered 1 | . . 1 . . Drone Launches . | . . . . . Drone Recoveries . | . . . . . Exploration | -11 -10 -10 -9 -8 ------------- Run | Scr Mat Min Mat Mat Turns Passed 1144 | 5 523 193 187 236 Spaces Moved 943 | 5 283 335 139 181 Core 236 | . . . 75 161 Treads . | . . . . . Legs 127 | 5 122 . . . Wheels . | . . . . . Hover 580 | . 161 335 64 20 Flight . | . . . . . Fastest Speed 50 | 120 56 56 52 50 Average Speed 95 | 120 139 56 92 102 Slowest Speed 236 | 120 236 56 150 200 Overloaded Moves . | . . . . . Propulsion Burnouts . | . . . . . Robots Hopped . | . . . . . Cave-ins Triggered . | . . . . . Exploration Rate (%) 34 | 2 46 78 24 23 Regions Visited 4 Branch Regions 1 Pre-discovered Areas . | . . . . . Known Exits Taken . | . . . . . Unknown Exits Taken 4 | 1 1 1 1 . Scrap Searched 1 | . . 1 . . Spaces Dug . | . . . . . Terrain Destroyed 93 | . 53 . 40 . Melee . | . . . . . Projectile . | . . . . . AOE 93 | . 53 . 40 . Actions | -11 -10 -10 -9 -8 --------- Run | Scr Mat Min Mat Mat Total 1122 | 4 371 340 182 225 Wait 72 | . 14 4 26 28 Move 939 | 4 282 334 138 181 Hop . | . . . . . Pick Up 16 | . 15 1 . . Fast Attach 12 | . 3 . . 9 Attach 10 | . 5 . 3 2 Detach 4 | . 3 . . 1 Swap 10 | . 9 . . 1 Drop 17 | . 16 1 . . Fire 39 | . 24 . 15 . Melee . | . . . . . Ram 3 | . . . . 3 Kick . | . . . . . Crush . | . . . . . Escape Stasis . | . . . . . Rewire . | . . . . . Trap . | . . . . . Miscellaneous . | . . . . . Route ------- -11/Scrapyard -10/Materials -10/Mines -9/Materials -8/Materials (discovered 1 exit: [*Fac]) History --------- Turn | Location | Event 1 | -11/Scrapyard | Discovered new exit (range 1) 6 | -11/Scrapyard | Entered Materials 237 | -10/Materials | Core integrity fell below 50% 311 | -10/Materials | Build established: Mutant 499 | -10/Materials | Discovered new exit (range 16) 529 | -10/Materials | Entered Mines 569 | -10/Mines | Learned Materials garrison access intel 667 | -10/Mines | Discovered new exit (range 10) 722 | -10/Mines | Entered Materials 722 | -9/Materials | Evolved 2 slots: Propulsion x1, Utility x1 827 | -9/Materials | Destroyed 12 combat bots 848 | -9/Materials | Lost 6 parts (3n2u1w) 882 | -9/Materials | Discovered new exit (range 6) 909 | -9/Materials | Entered another Materials area 909 | -8/Materials | Evolved 2 slots: Utility x2 1132 | -8/Materials | Discovered new exit (range 10) 1135 | -8/Materials | Core integrity fell below 50% 1145 | -8/Materials | Self-destructed Last Messages --------------- No active investigation squads found. >>Layout(Zone) Retrieving Zone 5H layout... Downloaded map data. 01091_ Slammed into K-01 Serf. 01102_ Acquired Gravmag System. 01103_ Particle Gun destroyed. 01104_ Acquired Gravmag System. 01109_ Acquired Imp. Medium Armor Plating. 01120_ Slammed into G-50 Soldier. 01120_ Gravmag System permanently disabled. 01120_ Destabilizing: Short circuit. 01122_ Gravmag System destroyed. 01124_ Broken Gravmag System destroyed. 01132_ EXIT=FOUND 01136_ Gravmag System destroyed. 01137_ Imp. Medium Armor Plating destroyed. 01140_ Acquired Prototype Launcher. 01140_ Identified Adv. EMP Blaster. 01143_ Acquired Adv. EMP Blaster. Map ----- +----------------------------------------------------+ | ???????????????????????????????? | | ???????????????????????????????? | | ???????????????????????????????? | | ???????????????????????????????? | | ???????????????????????????????? | | ?????????????????? ??????????? | | ????????????????? ??????????? | | ????????????????? ??????????? | | ????????????????? ?????????? | | ?????????????????# #?????????? | | ?????????????????# #?????????? | | ?????????????????# #?????????? | | ?????????????????# #?????????? | | ?????????????????# #?????????? | | ?????????????????# #?????????? | | ?????????????????# #?????????? | | ?????????????????# #?????????? | | ?????????????????# #?????????? | | ???????????????### #####?????? | | ??????????######## !!#?????? | | ???######## !!#?????? | | ???# # gg = #?????? | | ???# # gg #?????? | | ???# /g ##### ## ! #?????? | | ???# ] # #???# ## !!#?????? | | ???# ]@ # #???# ######?????? | | ???# # #####/##?????????? | | ???######## # ! #?????????? | | ??????????# # ########### | | ??????????# # """ " | | ??????????+ + """ ########/## | | ??????????# # """ #??# ! # | | ??????????# < # #??# "# | | ??????????# ###+####??# """ T# | | ??????????#####?# #?????# """ "# | | ????????????????# #?????# """ # | | ????????????????# #?????# # | | ????????????????# #?????##+##/## | | ????????????????# #??????# | | ????????????????# #??????# | | ???????????????## ######## | | ??????????????? | | ???????????????################# | | ???????????????????????????????? | | ???????????????????????????????? | | ???????????????????????????????? | | ???????????????????????????????? | | | | | | | +----------------------------------------------------+ Best States ------------- Heat Dissipation 31 Energy Generation 12 Energy Capacity 265 Matter Stores 362 Matter Capacity 400 Sight Range 18 Robot Scan Range 13 Terrain Scan Range 16 Terrain Scan Density 85 Armor Coverage 225 Evasion (%) 54 Item Schematics ----------------- None Robot Schematics ------------------ None Fabricated ------------ Nothing Alien Tech Used ----------------- None Achievements -------------- None Challenges ------------ None Game ------ Seed LightProtonSystem Manual? 0 Play Time 00:34:37 Cumulative 27.6 hours Start 2020.08.22 @ 09:38:07 End 2020.08.22 @ 10:12:50 Sessions 1 Manual Loads 0 Difficulty Rogue Special Mode None Game No. 1 Rogue 1 Adventurer 0 Explorer 0 Win Type - Total 0 Types 0/0/0/0/0/0/0 Lore% 7 Gallery% 30 Achievement% 24 Wizard Run 0 Options --------- ASCII 0 Keyboard 1 Movement Numpad Keybinds 0 Fullscreen 1 Font 18/SmallcapsGlow Map View 76x50 Tactical HUD 1 Map Filters NONE Filters NONE Steam 1 RUN: 9af3bea6-07fa-4f2d-b708-2335cfcb6e33